Workbook

Sheet Home
E2: TEDDED vs NON-TEDDED COST COMPARISON
I4: HOMEPAGE

Sheet Assumptions
A1: Assumptions
B2: Interest | C2: Taxes | D2: Insurance | E2: Housing | F2: Labor | G2: Ac | H2: Fuel Cost ($/gal) | I2: Annual Use (hrs) | J2: Purchase Price (% of list price) | K2: Trade-in Value (% of purchase price) | L2: Trade-in Year | M2: Efficiency | N2: Yield (ton/ac)
B3: 0.08 | C3: 0.01 | D3: 0.0075 | E3: 0.0025 | F3: 20 | G3: 2000 | H3: 2.5 | I3: 1000 | J3: 0.8 | K3: 0.7 | L3: 3 | M3: 0.8 | N3: 1

Sheet Tractors
A1: Tractor Data
L2: Fixed Cost (Hourly) | P2: Variable Cost (Hourly)
B3: Model | C3: Special Uses | D3: Engine hp | E3: PTO hp | F3: List Price | G3: R&M | H3: Purchase Price | I3: Trade in (yrs) | J3: Annual Use (hrs) | K3: Trade in Value | L3: Depreciation | M3: Interest | N3: TIH | O3: Total Fixed | P3: R&M (Hourly) | Q3: Labor | R3: Total Variable | S3: Cost Per Hour Without Fuel
B4: John Deere 6155R | C4: Tractor | D4: 155 | E4: =D4*0.8 -> 124 | F4: 153500 | G4: =0.07*H4*(Assumptions!$I$3/1000)^2 -> 8596 | H4: =F4*Assumptions!$J$3 -> 122800 | I4: =Assumptions!$L$3 -> 3 | J4: =Assumptions!$I$3 -> 1000 | K4: =H4*Assumptions!$K$3 -> 85960 | L4: =((H4-K4)/I4)/Assumptions!$I$3 -> 12.28 | M4: =(Assumptions!$B$3*H4)/Assumptions!$I$3 -> 9.824 | N4: =(H4*SUM(Assumptions!$C$3:$E$3))/Assumptions!$I$3 -> 2.456 | O4: =SUM(L4:N4) -> 24.56 | P4: =G4/Assumptions!$I$3 -> 8.596 | Q4: =Assumptions!$F$3 -> 20 | R4: =SUM(P4:Q4) -> 28.596 | S4: =O4+R4 -> 53.156
A5: Tractor | B5: John Deere 7250R | C5: Tractor | D5: 250 | E5: =D5*0.8 -> 200 | F5: 249000 | G5: =0.07*H5*(Assumptions!$I$3/1000)^2 -> 13944 | H5: =F5*Assumptions!$J$3 -> 199200 | I5: =Assumptions!$L$3 -> 3 | J5: =Assumptions!$I$3 -> 1000 | K5: =H5*Assumptions!$K$3 -> 139440 | L5: =((H5-K5)/I5)/Assumptions!$I$3 -> 19.92 | M5: =(Assumptions!$B$3*H5)/Assumptions!$I$3 -> 15.936 | N5: =(H5*SUM(Assumptions!$C$3:$E$3))/Assumptions!$I$3 -> 3.984 | O5: =SUM(L5:N5) -> 39.84 | P5: =G5/Assumptions!$I$3 -> 13.944 | Q5: =Assumptions!$F$3 -> 20 | R5: 33.944 | S5: 73.784
A6: Windrower | B6: John Deere 8320R | C6: Tractor | D6: 320 | E6: 256 | F6: 345000 | G6: =0.07*H6*(Assumptions!$I$3/1000)^2 -> 19320 | H6: =F6*Assumptions!$J$3 -> 276000 | I6: =Assumptions!$L$3 -> 3 | J6: =Assumptions!$I$3 -> 1000 | K6: =H6*Assumptions!$K$3 -> 193200 | L6: =((H6-K6)/I6)/Assumptions!$I$3 -> 27.6 | M6: =(Assumptions!$B$3*H6)/Assumptions!$I$3 -> 22.08 | N6: =(H6*SUM(Assumptions!$C$3:$E$3))/Assumptions!$I$3 -> 5.52 | O6: 55.2 | P6: =G6/Assumptions!$I$3 -> 19.32 | Q6: =Assumptions!$F$3 -> 20 | R6: 39.32 | S6: 94.52
A7: Self-Propelled Forage Harvester | B7: John Deere W235 | C7: Windrower | D7: 235 | E7: 188 | F7: 154646 | G7: =0.07*H7*(Assumptions!$I$3/1000)^2 -> 8660.176 | H7: =F7*Assumptions!$J$3 -> 123716.8 | I7: =Assumptions!$L$3 -> 3 | J7: =Assumptions!$I$3 -> 1000 | K7: =H7*Assumptions!$K$3 -> 86601.76 | L7: =((H7-K7)/I7)/Assumptions!$I$3 -> 12.37168 | M7: =(Assumptions!$B$3*H7)/Assumptions!$I$3 -> 9.897344 | N7: =(H7*SUM(Assumptions!$C$3:$E$3))/Assumptions!$I$3 -> 2.474336 | O7: 24.74336 | P7: =G7/Assumptions!$I$3 -> 8.660176 | Q7: =Assumptions!$F$3 -> 20 | R7: 28.660176 | S7: 53.403536
B8: John Deere W260 | C8: Windrower | D8: 260 | E8: 208 | F8: 166610 | G8: =0.07*H8*(Assumptions!$I$3/1000)^2 -> 9330.16 | H8: =F8*Assumptions!$J$3 -> 133288 | I8: =Assumptions!$L$3 -> 3 | J8: =Assumptions!$I$3 -> 1000 | K8: =H8*Assumptions!$K$3 -> 93301.6 | L8: =((H8-K8)/I8)/Assumptions!$I$3 -> 13.3288 | M8: =(Assumptions!$B$3*H8)/Assumptions!$I$3 -> 10.66304 | N8: =(H8*SUM(Assumptions!$C$3:$E$3))/Assumptions!$I$3 -> 2.66576 | O8: 26.6576 | P8: =G8/Assumptions!$I$3 -> 9.33016 | Q8: =Assumptions!$F$3 -> 20 | R8: 29.33016 | S8: 55.98776
B9: John Deere 8800 SPFH NA | C9: Self-Propelled Forage Harvester | D9: 832 | E9: 665.6 | F9: 736020 | G9: =0.03*H9*(Assumptions!$I$3/1000)^2 -> 17664.48 | H9: =F9*Assumptions!$J$3 -> 588816 | I9: =Assumptions!$L$3 -> 3 | J9: =Assumptions!$I$3 -> 1000 | K9: =H9*Assumptions!$K$3 -> 412171.2 | L9: =((H9-K9)/I9)/Assumptions!$I$3 -> 58.8816 | M9: =(Assumptions!$B$3*H9)/Assumptions!$I$3 -> 47.10528 | N9: =(H9*SUM(Assumptions!$C$3:$E$3))/Assumptions!$I$3 -> 11.77632 | O9: 117.7632 | P9: =G9/Assumptions!$I$3 -> 17.66448 | Q9: =Assumptions!$F$3 -> 20 | R9: 37.66448 | S9: 155.42768
B10: John Deere 8600 SPFH NA | C10: Self-Propelled Forage Harvester | D10: 617 | E10: 493.6 | F10: 615075 | G10: =0.03*H10*(Assumptions!$I$3/1000)^2 -> 14761.8 | H10: =F10*Assumptions!$J$3 -> 492060 | I10: =Assumptions!$L$3 -> 3 | J10: =Assumptions!$I$3 -> 1000 | K10: =H10*Assumptions!$K$3 -> 344442 | L10: =((H10-K10)/I10)/Assumptions!$I$3 -> 49.206 | M10: =(Assumptions!$B$3*H10)/Assumptions!$I$3 -> 39.3648 | N10: =(H10*SUM(Assumptions!$C$3:$E$3))/Assumptions!$I$3 -> 9.8412 | O10: 98.412 | P10: =G10/Assumptions!$I$3 -> 14.7618 | Q10: =Assumptions!$F$3 -> 20 | R10: 34.7618 | S10: 133.1738
B11: John Deere 8400 SPFH NA | C11: Self-Propelled Forage Harvester | D11: 532 | E11: 425.6 | F11: 538707 | G11: =0.03*H11*(Assumptions!$I$3/1000)^2 -> 12928.968 | H11: =F11*Assumptions!$J$3 -> 430965.6 | I11: =Assumptions!$L$3 -> 3 | J11: =Assumptions!$I$3 -> 1000 | K11: =H11*Assumptions!$K$3 -> 301675.92 | L11: =((H11-K11)/I11)/Assumptions!$I$3 -> 43.09656 | M11: =(Assumptions!$B$3*H11)/Assumptions!$I$3 -> 34.477248 | N11: =(H11*SUM(Assumptions!$C$3:$E$3))/Assumptions!$I$3 -> 8.619312 | O11: 86.19312 | P11: =G11/Assumptions!$I$3 -> 12.928968 | Q11: =Assumptions!$F$3 -> 20 | R11: 32.928968 | S11: 119.122088

Sheet Implements
A1: Implements
M3: Productivity | Q3: Fixed Cost (Hourly) | U3: Variable Costs (Hourly)
B4: Model | C4: Type | D4: Size (ft) | E4: Attachment | F4: List Price | G4: Purchase Price | H4: Trade-in (yrs) | I4: Trade-in Value | J4: R&M | K4: Power Required (hp) | L4: Range | M4: Tractor Required | N4: Efficiency | O4: Speed (mph) | P4: Effective Field Capacity | Q4: Hours of Use (Annual) | R4: Interest | S4: Depreciation | T4: TIH | U4: Total Fixed Costs (Hourly) | V4: R&M (Hourly) | W4: Labor | X4: Total Variable Costs (Hourly) | Y4: Tractor Fuel Usage (gal/hr) | Z4: Tractor Fuel Cost ($/hr) | AA4: Total Hourly Tractor Cost | AB4: Total Cost per Hour | AC4: Total Cost per Acre | AD4: Total Cost Per Ton
B5: GF 502THA | C5: Tedder | D5: =16+(5/12) -> 16.41666667 | E5: Drawbar | F5: 9110 | G5: =F5*Assumptions!$J$3 -> 7288 | H5: 3 | I5: =G5*Assumptions!$K$3 -> 5101.6 | J5: =0.17*G5*(Q5/1000)^1.4 -> 179.1644527 | K5: 20 | M5: John Deere 6155R | N5: 0.8 | O5: 5 | P5: =O5*N5*D5/8.25 -> 7.95959596 | Q5: =Assumptions!$G$3/P5 -> 251.2690355 | R5: =Assumptions!$B$3*G5/Q5 -> 2.320381414 | S5: =((G5-I5)/H5)/Q5 -> 2.900476768 | T5: =(G5*SUM(Assumptions!$C$3:$E$3))/Q5 -> 0.5800953535 | U5: =SUM(R5:T5) -> 5.800953535 | V5: =J5/Q5 -> 0.7130383269 | W5: =Assumptions!$F$3 -> 20 | X5: =SUM(V5:W5) -> 20.71303833 | Y5: =(0.0434*((0.6*D5)/VLOOKUP(M5,TractorTable[],4,FALSE))+0.019)*VLOOKUP(M5,TractorTable[],4,FALSE) -> 2.78349 | Z5: =(FuelCost*Implements!Y5) -> 6.958725 | AA5: =(VLOOKUP(M5,TractorTable[],18,FALSE))+Z5 -> 60.114725 | AB5: =X5+U5+AA5 -> 86.62871686 | AC5: =AB5/P5 -> 10.88355707 | AD5: =AC5/Assumptions!$N$3 -> 10.88355707
B6: GF 7802 | C6: Tedder | D6: =25+(7/12) -> 25.58333333 | E6: 3-point mounted category 2 | F6: 19590 | G6: =F6*Assumptions!$J$3 -> 15672 | H6: 3 | I6: =G6*Assumptions!$K$3 -> 10970.4 | J6: =0.17*G6*(Q6/1000)^1.4 -> 207.0269563 | K6: 75 | M6: John Deere 6155R | N6: 0.8 | O6: 5 | P6: =O6*N6*D6/8.25 -> 12.4040404 | Q6: =Assumptions!$G$3/P6 -> 161.237785 | R6: =Assumptions!$B$3*G6/Q6 -> 7.775844848 | S6: 9.719806061 | T6: =(G6*SUM(Assumptions!$C$3:$E$3))/Q6 -> 1.943961212 | U6: =SUM(R6:T6) -> 19.43961212 | V6: 1.283985365 | W6: =Assumptions!$F$3 -> 20 | X6: =SUM(V6:W6) -> 21.28398537 | Y6: =(0.0434*((0.6*D6)/VLOOKUP(M6,TractorTable[],4,FALSE))+0.019)*VLOOKUP(M6,TractorTable[],4,FALSE) -> 3.02219 | Z6: =(FuelCost*Implements!Y6) -> 7.555475 | AA6: =(VLOOKUP(M6,TractorTable[],18,FALSE))+Z6 -> 60.711475 | AB6: =X6+U6+AA6 -> 101.4350725 | AC6: =AB6/P6 -> 8.177583205 | AD6: =AC6/Assumptions!$N$3 -> 8.177583205
B7: GF 7802 T GII | C7: Tedder | D7: =25+(7/12) -> 25.58333333 | E7: Drawbar | F7: 24650 | G7: =F7*Assumptions!$J$3 -> 19720 | H7: 3 | I7: =G7*Assumptions!$K$3 -> 13804 | J7: 260.500994 | K7: 45 | M7: John Deere 6155R | N7: 0.8 | O7: 5 | P7: =O7*N7*D7/8.25 -> 12.4040404 | Q7: =Assumptions!$G$3/P7 -> 161.237785 | R7: =Assumptions!$B$3*G7/Q7 -> 9.784307071 | S7: 12.23038384 | T7: =(G7*SUM(Assumptions!$C$3:$E$3))/Q7 -> 2.446076768 | U7: 24.46076768 | V7: 1.615632428 | W7: =Assumptions!$F$3 -> 20 | X7: 21.61563243 | Y7: =(0.0434*((0.6*D7)/VLOOKUP(M7,TractorTable[],4,FALSE))+0.019)*VLOOKUP(M7,TractorTable[],4,FALSE) -> 3.02219 | Z7: =(FuelCost*Implements!Y7) -> 7.555475 | AA7: =(VLOOKUP(M7,TractorTable[],18,FALSE))+Z7 -> 60.711475 | AB7: 106.7878751 | AC7: 8.609120224 | AD7: =AC7/Assumptions!$N$3 -> 8.609120224
A8: Tedder | B8: GF 10812 T | C8: Tedder | D8: =35+(5/12) -> 35.41666667 | E8: Drawbar | F8: 37600 | G8: =F8*Assumptions!$J$3 -> 30080 | H8: 3 | I8: =G8*Assumptions!$K$3 -> 21056 | J8: 252.0168214 | K8: 55 | M8: John Deere 6155R | N8: 0.8 | O8: 5 | P8: =O8*N8*D8/8.25 -> 17.17171717 | Q8: =Assumptions!$G$3/P8 -> 116.4705882 | R8: =Assumptions!$B$3*G8/Q8 -> 20.6610101 | S8: 25.82626263 | T8: =(G8*SUM(Assumptions!$C$3:$E$3))/Q8 -> 5.165252525 | U8: 51.65252525 | V8: 2.16378079 | W8: =Assumptions!$F$3 -> 20 | X8: 22.16378079 | Y8: =(0.0434*((0.6*D8)/VLOOKUP(M8,TractorTable[],4,FALSE))+0.019)*VLOOKUP(M8,TractorTable[],4,FALSE) -> 3.27825 | Z8: =(FuelCost*Implements!Y8) -> 8.195625 | AA8: =(VLOOKUP(M8,TractorTable[],18,FALSE))+Z8 -> 61.351625 | AB8: 135.167931 | AC8: 7.87154422 | AD8: =AC8/Assumptions!$N$3 -> 7.87154422
A9: Triple Mower | B9: GF 17012 | C9: Tedder | D9: =56+(5/12) -> 56.41666667 | E9: Drawbar | F9: 65420 | G9: =F9*Assumptions!$J$3 -> 52336 | H9: 3 | I9: =G9*Assumptions!$K$3 -> 36635.2 | J9: 228.4928373 | K9: 100 | M9: John Deere 6155R | N9: 0.8 | O9: 5 | P9: =O9*N9*D9/8.25 -> 27.35353535 | Q9: =Assumptions!$G$3/P9 -> 73.11669129 | R9: =Assumptions!$B$3*G9/Q9 -> 57.26298505 | S9: 71.57873131 | T9: =(G9*SUM(Assumptions!$C$3:$E$3))/Q9 -> 14.31574626 | U9: 143.1574626 | V9: 3.125043451 | W9: =Assumptions!$F$3 -> 20 | X9: 23.12504345 | Y9: =(0.0434*((0.6*D9)/VLOOKUP(M9,TractorTable[],4,FALSE))+0.019)*VLOOKUP(M9,TractorTable[],4,FALSE) -> 3.82509 | Z9: =(FuelCost*Implements!Y9) -> 9.562725 | AA9: =(VLOOKUP(M9,TractorTable[],18,FALSE))+Z9 -> 62.718725 | AB9: 229.0012311 | AC9: 8.371906158 | AD9: =AC9/Assumptions!$N$3 -> 8.371906158
A10: Mower | B10: VOLTO 52T | C10: Tedder | D10: 17 | E10: Drawbar | F10: 7900 | G10: =F10*Assumptions!$J$3 -> 6320 | H10: 3 | I10: =G10*Assumptions!$K$3 -> 4424 | J10: 147.9554761 | K10: 20 | M10: John Deere 6155R | N10: 0.8 | O10: 5 | P10: =O10*N10*D10/8.25 -> 8.242424242 | Q10: =Assumptions!$G$3/P10 -> 242.6470588 | R10: =Assumptions!$B$3*G10/Q10 -> 2.083684848 | S10: 2.604606061 | T10: =(G10*SUM(Assumptions!$C$3:$E$3))/Q10 -> 0.5209212121 | U10: =SUM(R10:T10) -> 5.209212121 | V10: 0.6097559014 | W10: =Assumptions!$F$3 -> 20 | X10: =SUM(V10:W10) -> 20.6097559 | Y10: =(0.0434*((0.6*D10)/VLOOKUP(M10,TractorTable[],4,FALSE))+0.019)*VLOOKUP(M10,TractorTable[],4,FALSE) -> 2.79868 | Z10: =(FuelCost*Implements!Y10) -> 6.9967 | AA10: =(VLOOKUP(M10,TractorTable[],18,FALSE))+Z10 -> 60.1527 | AB10: 85.97166802 | AC10: 10.43038619 | AD10: =AC10/Assumptions!$N$3 -> 10.43038619
A11: Windrower | B11: VOLTO 800TH | C11: Tedder | D11: 25.3 | E11: Drawbar | F11: 16650 | G11: =F11*Assumptions!$J$3 -> 13320 | H11: 3 | I11: =G11*Assumptions!$K$3 -> 9324 | J11: 178.7219732 | K11: 45 | M11: John Deere 6155R | N11: 0.8 | O11: 5 | P11: 12.26666667 | Q11: =Assumptions!$G$3/P11 -> 163.0434783 | R11: =Assumptions!$B$3*G11/Q11 -> 6.53568 | S11: 8.1696 | T11: =(G11*SUM(Assumptions!$C$3:$E$3))/Q11 -> 1.63392 | U11: =SUM(R11:T11) -> 16.3392 | V11: 1.096161435 | W11: =Assumptions!$F$3 -> 20 | X11: =SUM(V11:W11) -> 21.09616144 | Y11: =(0.0434*((0.6*D11)/VLOOKUP(M11,TractorTable[],4,FALSE))+0.019)*VLOOKUP(M11,TractorTable[],4,FALSE) -> 3.014812 | Z11: =(FuelCost*Implements!Y11) -> 7.53703 | AA11: =(VLOOKUP(M11,TractorTable[],18,FALSE))+Z11 -> 60.69303 | AB11: 98.12839144 | AC11: 7.999597128 | AD11: =AC11/Assumptions!$N$3 -> 7.999597128
A12: Merger | B12: VOLTO 1100T | C12: Tedder | D12: 35.1 | E12: 2-pt trailed | F12: 29655 | G12: =F12*Assumptions!$J$3 -> 23724 | H12: 3 | I12: =G12*Assumptions!$K$3 -> 16606.8 | J12: 201.2798999 | K12: 55 | M12: John Deere 6155R | N12: 0.8 | O12: 5 | P12: 17.01818182 | Q12: =Assumptions!$G$3/P12 -> 117.5213675 | R12: =Assumptions!$B$3*G12/Q12 -> 16.14957382 | S12: 20.18696727 | T12: =(G12*SUM(Assumptions!$C$3:$E$3))/Q12 -> 4.037393455 | U12: 40.37393455 | V12: 1.712708966 | W12: =Assumptions!$F$3 -> 20 | X12: 21.71270897 | Y12: =(0.0434*((0.6*D12)/VLOOKUP(M12,TractorTable[],4,FALSE))+0.019)*VLOOKUP(M12,TractorTable[],4,FALSE) -> 3.270004 | Z12: =(FuelCost*Implements!Y12) -> 8.17501 | AA12: =(VLOOKUP(M12,TractorTable[],18,FALSE))+Z12 -> 61.33101 | AB12: 123.4176535 | AC12: 7.252105708 | AD12: =AC12/Assumptions!$N$3 -> 7.252105708
A13: Windrow Pickup | B13: VOLTO 1300T | C13: Tedder | D13: 42.4 | E13: 2-pt trailed | F13: 41000 | G13: =F13*Assumptions!$J$3 -> 32800 | H13: 3 | I13: =G13*Assumptions!$K$3 -> 22960 | J13: 213.6014025 | K13: 75 | M13: John Deere 6155R | N13: 0.8 | O13: 5 | P13: 20.55757576 | Q13: =Assumptions!$G$3/P13 -> 97.28773585 | R13: =Assumptions!$B$3*G13/Q13 -> 26.97153939 | S13: 33.71442424 | T13: =(G13*SUM(Assumptions!$C$3:$E$3))/Q13 -> 6.742884848 | U13: 67.42884848 | V13: 2.195563507 | W13: =Assumptions!$F$3 -> 20 | X13: 22.19556351 | Y13: =(0.0434*((0.6*D13)/VLOOKUP(M13,TractorTable[],4,FALSE))+0.019)*VLOOKUP(M13,TractorTable[],4,FALSE) -> 3.460096 | Z13: =(FuelCost*Implements!Y13) -> 8.65024 | AA13: =(VLOOKUP(M13,TractorTable[],18,FALSE))+Z13 -> 61.80624 | AB13: 151.430652 | AC13: 7.366172635 | AD13: =AC13/Assumptions!$N$3 -> 7.366172635
B14: KW 5.52/ 4x7 | C14: Tedder | D14: =18+(0.5/12) -> 18.04166667 | E14: 3-pt linkage | F14: 7758 | G14: =F14*Assumptions!$J$3 -> 6206.4 | H14: 3 | I14: =G14*Assumptions!$K$3 -> 4344.48 | J14: 133.6887619 | K14: 50 | M14: John Deere 6155R | N14: 0.8 | O14: 5 | P14: 8.747474747 | Q14: =Assumptions!$G$3/P14 -> 228.6374134 | R14: =Assumptions!$B$3*G14/Q14 -> 2.171613091 | S14: 2.714516364 | T14: =(G14*SUM(Assumptions!$C$3:$E$3))/Q14 -> 0.5429032727 | U14: =SUM(R14:T14) -> 5.429032727 | V14: 0.5847195342 | W14: =Assumptions!$F$3 -> 20 | X14: =SUM(V14:W14) -> 20.58471953 | Y14: =(0.0434*((0.6*D14)/VLOOKUP(M14,TractorTable[],4,FALSE))+0.019)*VLOOKUP(M14,TractorTable[],4,FALSE) -> 2.825805 | Z14: =(FuelCost*Implements!Y14) -> 7.0645125 | AA14: =(VLOOKUP(M14,TractorTable[],18,FALSE))+Z14 -> 60.2205125 | AB14: 86.23426476 | AC14: 9.858189621 | AD14: =AC14/Assumptions!$N$3 -> 9.858189621
B15: KW 8.82/8 | C15: Tedder | D15: =28+(10.5/12) -> 28.875 | E15: 3-pt linkage | F15: 15862 | G15: =F15*Assumptions!$J$3 -> 12689.6 | H15: 3 | I15: =G15*Assumptions!$K$3 -> 8882.72 | J15: 141.5010289 | K15: 75 | M15: John Deere 6155R | N15: 0.8 | O15: 5 | P15: 14 | Q15: =Assumptions!$G$3/P15 -> 142.8571429 | R15: =Assumptions!$B$3*G15/Q15 -> 7.106176 | S15: 8.88272 | T15: =(G15*SUM(Assumptions!$C$3:$E$3))/Q15 -> 1.776544 | U15: =SUM(R15:T15) -> 17.76544 | V15: 0.9905072026 | W15: =Assumptions!$F$3 -> 20 | X15: =SUM(V15:W15) -> 20.9905072 | Y15: =(0.0434*((0.6*D15)/VLOOKUP(M15,TractorTable[],4,FALSE))+0.019)*VLOOKUP(M15,TractorTable[],4,FALSE) -> 3.107905 | Z15: =(FuelCost*Implements!Y15) -> 7.7697625 | AA15: =(VLOOKUP(M15,TractorTable[],18,FALSE))+Z15 -> 60.9257625 | AB15: 99.6817097 | AC15: 7.120122122 | AD15: =AC15/Assumptions!$N$3 -> 7.120122122
B16: KW 7.82 T | C16: Tedder | D16: =25+(7/12) -> 25.58333333 | E16: Trailed | F16: 19450 | G16: =F16*Assumptions!$J$3 -> 15560 | H16: 3 | I16: =G16*Assumptions!$K$3 -> 10892 | J16: 205.5474375 | K16: 50 | M16: John Deere 6155R | N16: 0.8 | O16: 5 | P16: 12.4040404 | Q16: =Assumptions!$G$3/P16 -> 161.237785 | R16: =Assumptions!$B$3*G16/Q16 -> 7.720274747 | S16: 9.650343434 | T16: =(G16*SUM(Assumptions!$C$3:$E$3))/Q16 -> 1.930068687 | U16: 19.30068687 | V16: 1.27480936 | W16: =Assumptions!$F$3 -> 20 | X16: 21.27480936 | Y16: =(0.0434*((0.6*D16)/VLOOKUP(M16,TractorTable[],4,FALSE))+0.019)*VLOOKUP(M16,TractorTable[],4,FALSE) -> 3.02219 | Z16: =(FuelCost*Implements!Y16) -> 7.555475 | AA16: =(VLOOKUP(M16,TractorTable[],18,FALSE))+Z16 -> 60.711475 | AB16: 101.2869712 | AC16: 8.165643446 | AD16: =AC16/Assumptions!$N$3 -> 8.165643446
B17: KWT 1600 | C17: Tedder | D17: =50+(1/12) -> 50.08333333 | E17: Trailed | F17: 45000 | G17: =F17*Assumptions!$J$3 -> 36000 | H17: 3 | I17: =G17*Assumptions!$K$3 -> 25200 | J17: 185.6839815 | K17: 80 | M17: John Deere 6155R | N17: 0.8 | O17: 5 | P17: 24.28282828 | Q17: =Assumptions!$G$3/P17 -> 82.36272879 | R17: =Assumptions!$B$3*G17/Q17 -> 34.96727273 | S17: 43.70909091 | T17: =(G17*SUM(Assumptions!$C$3:$E$3))/Q17 -> 8.741818182 | U17: 87.41818182 | V17: 2.254466119 | W17: =Assumptions!$F$3 -> 20 | X17: 22.25446612 | Y17: =(0.0434*((0.6*D17)/VLOOKUP(M17,TractorTable[],4,FALSE))+0.019)*VLOOKUP(M17,TractorTable[],4,FALSE) -> 3.66017 | Z17: =(FuelCost*Implements!Y17) -> 9.150425 | AA17: =(VLOOKUP(M17,TractorTable[],18,FALSE))+Z17 -> 62.306425 | AB17: 171.9790729 | AC17: 7.082332871 | AD17: =AC17/Assumptions!$N$3 -> 7.082332871
B18: KW 5.52/ 4x7T | C18: Tedder | D18: =18+(0.5/12) -> 18.04166667 | E18: Trailed | F18: 8603 | G18: =F18*Assumptions!$J$3 -> 6882.4 | H18: 3 | I18: =G18*Assumptions!$K$3 -> 4817.68 | J18: 148.2501184 | K18: 25 | M18: John Deere 6155R | N18: 0.8 | O18: 5 | P18: 8.747474747 | Q18: =Assumptions!$G$3/P18 -> 228.6374134 | R18: =Assumptions!$B$3*G18/Q18 -> 2.408144808 | S18: 3.01018101 | T18: =(G18*SUM(Assumptions!$C$3:$E$3))/Q18 -> 0.602036202 | U18: 6.02036202 | V18: 0.6484070834 | W18: =Assumptions!$F$3 -> 20 | X18: 20.64840708 | Y18: =(0.0434*((0.6*D18)/VLOOKUP(M18,TractorTable[],4,FALSE))+0.019)*VLOOKUP(M18,TractorTable[],4,FALSE) -> 2.825805 | Z18: =(FuelCost*Implements!Y18) -> 7.0645125 | AA18: =(VLOOKUP(M18,TractorTable[],18,FALSE))+Z18 -> 60.2205125 | AB18: 86.8892816 | AC18: 9.933070299 | AD18: =AC18/Assumptions!$N$3 -> 9.933070299
B19: Combo 8830D and 3125 | C19: Triple Mower | D19: =27+(3/12) -> 27.25 | E19: Triple Mower | F19: 96840 | G19: =F19*Assumptions!$J$3 -> 77472 | H19: 3 | I19: =G19*Assumptions!$K$3 -> 54230.4 | J19: =0.18*G19*(Q19/1000)^1.6 -> 396.9212312 | K19: 225 | M19: John Deere 8320R | N19: 0.8 | O19: 7 | P19: 18.4969697 | Q19: =Assumptions!$G$3/P19 -> 108.1258191 | R19: =Assumptions!$B$3*G19/Q19 -> 57.31988945 | S19: 71.64986182 | T19: =(G19*SUM(Assumptions!$C$3:$E$3))/Q19 -> 14.32997236 | U19: 143.2997236 | V19: 3.670919993 | W19: =Assumptions!$F$3 -> 20 | X19: 23.67091999 | Y19: =(0.0434*((3.3*D19)/VLOOKUP(M19,TractorTable[],4,FALSE))+0.019)*VLOOKUP(M19,TractorTable[],4,FALSE) -> 8.766745 | Z19: =(FuelCost*Implements!Y19) -> 21.9168625 | AA19: =(VLOOKUP(M19,TractorTable[],18,FALSE))+Z19 -> 116.4368625 | AB19: 283.4075061 | AC19: 15.32183437 | AD19: =AC19/Assumptions!$N$3 -> 15.32183437
B20: Combo 10030 and 3525 | C20: Triple Mower | D20: =32+(6/12) -> 32.5 | E20: Triple Mower | F20: 104460 | G20: =F20*Assumptions!$J$3 -> 83568 | H20: 3 | I20: =G20*Assumptions!$K$3 -> 58497.6 | J20: =0.18*G20*(Q20/1000)^1.6 -> 322.9777491 | K20: 250 | M20: John Deere 8320R | N20: 0.8 | O20: 7 | P20: 22.06060606 | Q20: =Assumptions!$G$3/P20 -> 90.65934066 | R20: =Assumptions!$B$3*G20/Q20 -> 73.74242909 | S20: 92.17803636 | T20: =(G20*SUM(Assumptions!$C$3:$E$3))/Q20 -> 18.43560727 | U20: 184.3560727 | V20: 3.562542445 | W20: =Assumptions!$F$3 -> 20 | X20: 23.56254244 | Y20: =(0.0434*((3.3*D20)/VLOOKUP(M20,TractorTable[],4,FALSE))+0.019)*VLOOKUP(M20,TractorTable[],4,FALSE) -> 9.51865 | Z20: =(FuelCost*Implements!Y20) -> 23.796625 | AA20: =(VLOOKUP(M20,TractorTable[],18,FALSE))+Z20 -> 118.316625 | AB20: 326.2352402 | AC20: 14.78813589 | AD20: =AC20/Assumptions!$N$3 -> 14.78813589
B21: John Deere 956 | C21: Mower | D21: 14.5 | E21: Center-Pivot Rotary | F21: 50150 | G21: =F21*Assumptions!$J$3 -> 40120 | H21: 3 | I21: =G21*Assumptions!$K$3 -> 28084 | J21: =0.16*G21*(Q21/1000)^2 -> 265.0554491 | K21: 100 | L21: 150 | M21: John Deere 6155R | N21: 0.8 | O21: 7 | P21: 9.842424242 | Q21: =Assumptions!$G$3/P21 -> 203.2019704 | R21: =Assumptions!$B$3*G21/Q21 -> 15.79512242 | S21: 19.74390303 | T21: =(G21*SUM(Assumptions!$C$3:$E$3))/Q21 -> 3.948780606 | U21: 39.48780606 | V21: =J21/Q21 -> 1.304394089 | W21: =Assumptions!$F$3 -> 20 | X21: 21.30439409 | Y21: =(0.0434*((3.3*D21)/VLOOKUP(M21,TractorTable[],4,FALSE))+0.019)*VLOOKUP(M21,TractorTable[],4,FALSE) -> 4.43269 | Z21: =(FuelCost*Implements!Y21) -> 11.081725 | AA21: =(VLOOKUP(M21,TractorTable[],18,FALSE))+Z21 -> 64.237725 | AB21: 125.0299251 | AC21: 12.70316358 | AD21: =AC21/Assumptions!$N$3 -> 12.70316358
B22: John Deere 835 | C22: Mower | D22: 11.5 | E22: Center-Pivot Rotary | F22: 37262 | G22: =F22*Assumptions!$J$3 -> 29809.6 | H22: 3 | I22: =G22*Assumptions!$K$3 -> 20866.72 | J22: =0.16*G22*(Q22/1000)^2 -> 313.0922264 | K22: 90 | L22: 150 | M22: John Deere 6155R | N22: 0.8 | O22: 7 | P22: 7.806060606 | Q22: =Assumptions!$G$3/P22 -> 256.2111801 | R22: =Assumptions!$B$3*G22/Q22 -> 9.30782177 | S22: =((G22-I22)/H22)/Q22 -> 11.63477721 | T22: =(G22*SUM(Assumptions!$C$3:$E$3))/Q22 -> 2.326955442 | U22: 23.26955442 | V22: 1.222008447 | W22: =Assumptions!$F$3 -> 20 | X22: 21.22200845 | Y22: =(0.0434*((3.3*D22)/VLOOKUP(M22,TractorTable[],4,FALSE))+0.019)*VLOOKUP(M22,TractorTable[],4,FALSE) -> 4.00303 | Z22: =(FuelCost*Implements!Y22) -> 10.007575 | AA22: =(VLOOKUP(M22,TractorTable[],18,FALSE))+Z22 -> 63.163575 | AB22: 107.6551379 | AC22: 13.79122496 | AD22: =AC22/Assumptions!$N$3 -> 13.79122496
B23: John Deere 500R | C23: Windrower | D23: 16 | E23: Rotary Platform | F23: 40566 | G23: =F23*Assumptions!$J$3 -> 32452.8 | H23: 3 | I23: =G23*Assumptions!$K$3 -> 22716.96 | J23: =0.06*G23*(Q23/1000)^2 -> 129.4229707 | K23: 235 | L23: 260 | M23: John Deere W235 | N23: 0.8 | O23: 5 | P23: 7.757575758 | Q23: =Assumptions!$G$3/P23 -> 257.8125 | R23: =Assumptions!$B$3*G23/Q23 -> 10.07020218 | S23: 12.58775273 | T23: =(G23*SUM(Assumptions!$C$3:$E$3))/Q23 -> 2.517550545 | U23: 25.17550545 | V23: 0.50200425 | W23: =Assumptions!$F$3 -> 20 | X23: 20.50200425 | Y23: =(0.0434*((0.5*D23)/VLOOKUP(M23,TractorTable[],4,FALSE))+0.019)*VLOOKUP(M23,TractorTable[],4,FALSE) -> 3.9192 | Z23: =(FuelCost*Implements!Y23) -> 9.798 | AA23: =(VLOOKUP(M23,TractorTable[],18,FALSE))+Z23 -> 63.201536 | AB23: 108.8790457 | AC23: 14.03518949 | AD23: =AC23/Assumptions!$N$3 -> 14.03518949
B24: John Deere 994R | C24: Windrower | D24: 13 | E24: Rotary Platform | F24: 30698 | G24: =F24*Assumptions!$J$3 -> 24558.4 | H24: 3 | I24: =G24*Assumptions!$K$3 -> 17190.88 | J24: =0.06*G24*(Q24/1000)^2 -> 148.3585296 | K24: 235 | L24: 260 | M24: John Deere W260 | N24: 0.8 | O24: 5 | P24: 6.303030303 | Q24: =Assumptions!$G$3/P24 -> 317.3076923 | R24: =Assumptions!$B$3*G24/Q24 -> 6.191693576 | S24: 7.73961697 | T24: =(G24*SUM(Assumptions!$C$3:$E$3))/Q24 -> 1.547923394 | U24: 15.47923394 | V24: 0.4675541538 | W24: =Assumptions!$F$3 -> 20 | X24: 20.46755415 | Y24: =(0.0434*((0.5*D24)/VLOOKUP(M24,TractorTable[],4,FALSE))+0.019)*VLOOKUP(M24,TractorTable[],4,FALSE) -> 4.2341 | Z24: =(FuelCost*Implements!Y24) -> 10.58525 | AA24: =(VLOOKUP(M24,TractorTable[],18,FALSE))+Z24 -> 66.57301 | AB24: 102.5197981 | AC24: 16.26516027 | AD24: =AC24/Assumptions!$N$3 -> 16.26516027
B25: KUHN MM 700 | C25: Merger | D25: 24 | E25: 2-pt swivel | F25: 82950 | G25: =F25*Assumptions!$J$3 -> 66360 | H25: 3 | I25: =G25*Assumptions!$K$3 -> 46452 | J25: =0.17*G25*(Q25/1000)^1.4 -> 958.6345877 | K25: 100 | M25: John Deere 6155R | N25: 0.8 | O25: 5 | P25: 11.63636364 | Q25: =Assumptions!$G$3/P25 -> 171.875 | R25: =Assumptions!$B$3*G25/Q25 -> 30.88756364 | S25: 38.60945455 | T25: =(G25*SUM(Assumptions!$C$3:$E$3))/Q25 -> 7.721890909 | U25: 77.21890909 | V25: 5.577510329 | W25: =Assumptions!$F$3 -> 20 | X25: 25.57751033 | Y25: =(0.0434*((0.8*D25)/VLOOKUP(M25,TractorTable[],4,FALSE))+0.019)*VLOOKUP(M25,TractorTable[],4,FALSE) -> 3.18928 | Z25: =(FuelCost*Implements!Y25) -> 7.9732 | AA25: =(VLOOKUP(M25,TractorTable[],18,FALSE))+Z25 -> 61.1292 | AB25: 163.9256194 | AC25: 14.08735792 | AD25: =AC25/Assumptions!$N$3 -> 14.08735792
B26: KUHN MM 1100 | C26: Merger | D26: 36 | E26: 2-pt swivel | F26: 156000 | G26: =F26*Assumptions!$J$3 -> 124800 | H26: 3 | I26: =G26*Assumptions!$K$3 -> 87360 | J26: =0.17*G26*(Q26/1000)^1.4 -> 1021.959158 | K26: 140 | M26: John Deere 7250R | N26: 0.8 | O26: 5 | P26: 17.45454545 | Q26: =Assumptions!$G$3/P26 -> 114.5833333 | R26: =Assumptions!$B$3*G26/Q26 -> 87.13309091 | S26: 108.9163636 | T26: =(G26*SUM(Assumptions!$C$3:$E$3))/Q26 -> 21.78327273 | U26: 217.8327273 | V26: 8.918916285 | W26: =Assumptions!$F$3 -> 20 | X26: 28.91891629 | Y26: =(0.0434*((0.8*D26)/VLOOKUP(M26,TractorTable[],4,FALSE))+0.019)*VLOOKUP(M26,TractorTable[],4,FALSE) -> 5.04992 | Z26: =(FuelCost*Implements!Y26) -> 12.6248 | AA26: =(VLOOKUP(M26,TractorTable[],18,FALSE))+Z26 -> 86.4088 | AB26: 333.1604436 | AC26: 19.08731708 | AD26: =AC26/Assumptions!$N$3 -> 19.08731708
B27: John Deere 640C (Large SPFH) | C27: Windrow Pickup | D27: 11.8 | E27: SPFH attachment | F27: 30762 | G27: =F27*Assumptions!$J$3 -> 24609.6 | H27: 3 | I27: =G27*Assumptions!$K$3 -> 17226.72 | J27: =0.06*G27*(Q27/1000)^2 -> 70.48549127 | K27: 500 | L27: 850 | M27: John Deere 8800 SPFH NA | N27: 0.8 | O27: 8 | P27: =O27*N27*D27/8.25 -> 9.153939394 | Q27: =Assumptions!$G$3/P27 -> 218.4851695 | R27: =Assumptions!$B$3*G27/Q27 -> 9.010991476 | S27: 11.26373935 | T27: =(G27*SUM(Assumptions!$C$3:$E$3))/Q27 -> 2.252747869 | U27: 22.52747869 | V27: 0.3226099576 | W27: =Assumptions!$F$3 -> 20 | X27: 20.32260996 | Y27: =(0.0434*((0.8*D27)/VLOOKUP(M27,TractorTable[],4,FALSE))+0.019)*VLOOKUP(M27,TractorTable[],4,FALSE) -> 13.056096 | Z27: =(FuelCost*Implements!Y27) -> 32.64024 | AA27: =(VLOOKUP(M27,TractorTable[],18,FALSE))+Z27 -> 188.06792 | AB27: 230.9180086 | AC27: 25.22608013 | AD27: =AC27/Assumptions!$N$3 -> 25.22608013
B28: John Deere 640C (Medium SPFH) | C28: Windrow Pickup | D28: 11.8 | E28: SPFH attachment | F28: 30762 | G28: =F28*Assumptions!$J$3 -> 24609.6 | H28: 3 | I28: =G28*Assumptions!$K$3 -> 17226.72 | J28: =0.06*G28*(Q28/1000)^2 -> 70.48549127 | K28: 500 | L28: 850 | M28: John Deere 8600 SPFH NA | N28: 0.8 | O28: 8 | P28: 9.153939394 | Q28: =Assumptions!$G$3/P28 -> 218.4851695 | R28: =Assumptions!$B$3*G28/Q28 -> 9.010991476 | S28: 11.26373935 | T28: =(G28*SUM(Assumptions!$C$3:$E$3))/Q28 -> 2.252747869 | U28: 22.52747869 | V28: 0.3226099576 | W28: =Assumptions!$F$3 -> 20 | X28: 20.32260996 | Y28: =(0.0434*((0.8*D28)/VLOOKUP(M28,TractorTable[],4,FALSE))+0.019)*VLOOKUP(M28,TractorTable[],4,FALSE) -> 9.788096 | Z28: =(FuelCost*Implements!Y28) -> 24.47024 | AA28: =(VLOOKUP(M28,TractorTable[],18,FALSE))+Z28 -> 157.64404 | AB28: 200.4941286 | AC28: 21.90249684 | AD28: =AC28/Assumptions!$N$3 -> 21.90249684
B29: John Deere 640C (Small SPFH) | C29: Windrow Pickup | D29: 11.8 | E29: SPFH attachment | F29: 30762 | G29: =F29*Assumptions!$J$3 -> 24609.6 | H29: 3 | I29: =G29*Assumptions!$K$3 -> 17226.72 | J29: 70.48549127 | K29: 500 | L29: 850 | M29: John Deere 8400 SPFH NA | N29: 0.8 | O29: 8 | P29: 9.153939394 | Q29: =Assumptions!$G$3/P29 -> 218.4851695 | R29: =Assumptions!$B$3*G29/Q29 -> 9.010991476 | S29: 11.26373935 | T29: =(G29*SUM(Assumptions!$C$3:$E$3))/Q29 -> 2.252747869 | U29: 22.52747869 | V29: 0.3226099576 | W29: =Assumptions!$F$3 -> 20 | X29: 20.32260996 | Y29: =(0.0434*((0.8*D29)/VLOOKUP(M29,TractorTable[],4,FALSE))+0.019)*VLOOKUP(M29,TractorTable[],4,FALSE) -> 8.496096 | Z29: =(FuelCost*Implements!Y29) -> 21.24024 | AA29: =(VLOOKUP(M29,TractorTable[],18,FALSE))+Z29 -> 140.362328 | AB29: 183.2124166 | AC29: 20.01459795 | AD29: =AC29/Assumptions!$N$3 -> 20.01459795

Sheet Scenario
A1: Cost Scenario
B5: Selected Implement | C5: Implement Type | D5: Cost Per Hour | E5: Cost Per Acre | F5: Cost Per Ton
B6: GF 17012 | C6: Tedder | D6: 229.0012311 | E6: 8.371906158 | F6: 8.371906158
B7: KUHN MM 1100 | C7: Merger | D7: 333.1604436 | E7: 19.08731708 | F7: 19.08731708
B8: John Deere 640C (Medium SPFH) | C8: Windrow Pickup | D8: 200.4941286 | E8: 21.90249684 | F8: 21.90249684
B9: John Deere 956 | C9: Mower | D9: 125.0299251 | E9: 12.70316358 | F9: 12.70316358
C10: TOTALS: | D10: 887.69 | E10: 62.06 | F10: 62.06
